bitfinex/quotes_ETHUSD_20230105
["timestamp","ask_amount","ask_price","bid_price","bid_amount"]
[1672876802209,8.00565,1257.6,1257.5,16.19713452]
[1672876802833,8.6063743,1257.6,1257.5,16.19713452]
[1672876806053,0.6547243,1257.6,1257.5,16.19713452]
[1672876806390,0.6007243,1257.6,1257.5,16.19713452]
[1672876806563,16.5040243,1257.6,1257.5,16.19713452]
[1672876806775,8.6063743,1257.6,1257.5,16.19713452]
[1672876806989,0.6547243,1257.6,1257.5,16.19713452]
[1672876807204,0.6007243,1257.6,1257.5,20.18628403]
[1672876807558,0.6007243,1257.6,1257.5,16.19713452]
[1672876807775,5.7237243,1257.6,1257.5,13.19713452]
[1672876807923,5.39949804,1257.6,1257.5,13.19713452]
[1672876808134,16.92916112,1257.6,1257.5,0.05823452]
[1672876808379,32.83246112,1257.6,1257.3,30.60853452]
[1672876808607,3.801,1257.4,1257.3,0.05823452]
[1672876808922,1.897,1257.4,1257.3,3.98914951]
[1672876809136,11.75395,1257.4,1257.2,34.69528202]
[1672876809349,1.958,1257.4,1257.2,38.68443153]
[1672876809662,1.904,1257.4,1257.3,3.0]
[1672876810285,1.904,1257.4,1257.3,18.9071]
[1672876810604,1.904,1257.4,1257.3,3.05823452]
[1672876810796,1.904,1257.4,1257.3,3.0]
[1672876810986,1.904,1257.4,1257.3,10.95355]
[1672876811196,1.904,1257.4,1257.3,30.90803403]
[1672876811412,1.904,1257.4,1257.3,7.04738403]
[1672876819132,28.94052738,1257.6,1257.3,28.71373918]
[1672876819133,1.901,1257.5,1257.3,28.71373918]
[1672876819339,1.901,1257.5,1257.4,3.98914951]
[1672876820794,1.901,1257.5,1257.4,6.98914951]
[1672876821005,1.901,1257.5,1257.4,7.04738403]
[1672876821290,1.901,1257.5,1257.4,11.51409195]
[1672876822319,1.901,1257.5,1257.4,11.51125348]
[1672876825471,10.5223943,1257.6,1257.4,11.51125348]
[1672876825628,10.5103943,1257.6,1257.4,11.51125348]
[1672876826285,0.6547243,1257.6,1257.5,3.98914951]
[1672876826513,0.6007243,1257.6,1257.5,13.09283871]
[1672876826865,0.6007243,1257.6,1257.5,8.19879323]
[1672876827207,0.58061407,1257.6,1257.5,8.19879323]
[1672876830693,0.53061407,1257.6,1257.5,8.19879323]
[1672876833337,0.53061407,1257.6,1257.5,16.15107323]
[1672876838092,0.53061407,1257.6,1257.5,8.19879323]
[1672876838341,10.38326407,1257.6,1257.5,7.04738403]
[1672876838484,10.43726407,1257.6,1257.5,7.04738403]
[1672876839151,2.48561407,1257.6,1257.5,7.04738403]
[1672876839486,2.43161407,1257.6,1257.5,14.99966403]
[1672876839800,2.43161407,1257.6,1257.5,12.07899643]
[1672876840515,2.43161407,1257.6,1257.5,7.04738403]
[1672876841167,1.6955644,1257.6,1257.5,7.04738403]
[1672876843649,9.6472144,1257.6,1257.5,7.04738403]
[1672876843862,1.7495644,1257.6,1257.5,7.04738403]
[1672876844070,1.6955644,1257.6,1257.5,7.04738403]
[1672876847314,9.6472144,1257.6,1257.5,7.04738403]
[1672876847581,9.7012144,1257.6,1257.5,7.04738403]
[1672876847754,25.6045144,1257.6,1257.5,7.04738403]
[1672876848161,9.7012144,1257.6,1257.5,7.04738403]
[1672876848617,1.7495644,1257.6,1257.5,7.04738403]
[1672876848842,1.6955644,1257.6,1257.5,3.05823452]
[1672876849048,1.6955644,1257.6,1257.5,3.0]
[1672876851056,10.391,1257.7,1257.5,14.94142951]
[1672876851241,10.379,1257.7,1257.5,14.99966403]
[1672876851644,10.379,1257.7,1257.5,22.95194403]
[1672876852049,10.379,1257.7,1257.5,14.99966403]
[1672876855533,10.379,1257.7,1257.5,7.04738403]
[1672876858413,10.379,1257.7,1257.5,14.99952403]
[1672876860391,10.379,1257.7,1257.5,7.04738403]
[1672876861778,10.379,1257.7,1257.5,14.99962403]
[1672876865504,8.475,1257.7,1257.5,14.99962403]
[1672876866075,8.475,1257.7,1257.5,14.99581095]
[1672876866285,8.475,1257.7,1257.5,15.21271095]
[1672876868197,8.475,1257.7,1257.5,19.14358028]
[1672876870441,8.475,1257.7,1257.5,27.09586028]
[1672876870910,8.475,1257.7,1257.6,3.98914951]
[1672876871121,8.475,1257.7,1257.6,11.94079951]
[1672876871326,0.054,1257.7,1257.6,11.99903403]
[1672876871686,5.52901308,1257.8,1257.6,11.99903403]
[1672876875443,5.52901308,1257.8,1257.6,4.04738403]
[1672876875637,5.52901308,1257.8,1257.6,3.98914951]
[1672876876343,5.52901308,1257.8,1257.6,11.94077951]
[1672876876655,5.52901308,1257.8,1257.6,11.99901403]
[1672876877606,8.15995528,1257.8,1257.6,4.04738403]
[1672876877809,5.48001308,1257.7,1257.5,3.27132144]
[1672876878021,13.48518308,1257.7,1257.5,7.20223643]
[1672876878231,13.48518308,1257.7,1257.5,7.26047095]
[1672876878488,9.90717,1257.7,1257.5,7.26047095]
[1672876878698,13.48518308,1257.7,1257.5,7.26047095]
[1672876878919,9.90717,1257.7,1257.5,7.26047095]
[1672876879071,13.48518308,1257.7,1257.5,7.26047095]
[1672876879953,9.90717,1257.7,1257.5,7.26047095]
[1672876881425,13.48518308,1257.7,1257.5,7.26047095]
[1672876882350,9.90717,1257.7,1257.5,7.26047095]
[1672876882813,9.90717,1257.7,1257.5,7.04357095]
[1672876883186,1.956,1257.7,1257.5,12.85953005]
[1672876883578,1.902,1257.7,1257.5,20.81173005]
[1672876884589,1.902,1257.7,1257.6,3.98914951]
[1672876884745,5.54101308,1257.8,1257.6,19.89193951]
[1672876884746,1.963,1257.8,1257.6,19.89193951]
[1672876884961,12.22225336,1257.9,1257.6,23.62162604]
[1672876884962,14.17525336,1257.9,1257.6,23.62162604]
[1672876885215,14.16325336,1257.9,1257.6,23.62162604]
[1672876885427,0.17244028,1257.9,1257.8,7.95038]
[1672876885593,0.11844028,1257.9,1257.8,15.90001698]
[1672876885808,0.11844028,1257.9,1257.8,18.90001698]
[1672876886855,0.11844028,1257.9,1257.8,26.85039698]
[1672876887052,0.11844028,1257.9,1257.8,18.90001698]
[1672876887544,0.11844028,1257.9,1257.8,26.85039698]
[1672876887860,0.11844028,1257.9,1257.8,18.90001698]
[1672876891105,0.11844028,1257.9,1257.8,26.85039698]
[1672876891351,0.11844028,1257.9,1257.8,34.80077698]
[1672876892027,0.11844028,1257.9,1257.8,26.85039698]
[1672876897807,0.11844028,1257.9,1257.8,34.80077698]
[1672876898452,0.11844028,1257.9,1257.8,26.85039698]
[1672876904735,0.11844028,1257.9,1257.8,18.90001698]
[1672876905209,0.11844028,1257.9,1257.8,26.85039698]
[1672876905802,0.11844028,1257.9,1257.8,18.90001698]
[1672876906686,0.11844028,1257.9,1257.8,26.85039698]
[1672876907063,0.11844028,1257.9,1257.8,18.90001698]
[1672876908632,0.11844028,1257.9,1257.8,26.85039698]
[1672876909816,0.11844028,1257.9,1257.8,34.80077698]
[1672876910467,0.11844028,1257.9,1257.8,26.85039698]
[1672876910951,0.11844028,1257.9,1257.8,34.80077698]
[1672876919170,0.11844028,1257.9,1257.8,34.79801825]
[1672876924377,0.11844028,1257.9,1257.8,31.1040653]
[1672876925608,0.06844028,1257.9,1257.8,31.1040653]
[1672876926069,0.06844028,1257.9,1257.8,44.2436653]
[1672876935415,1.38344028,1257.9,1257.8,20.39528403]
[1672876935762,2.08759274,1257.9,1257.8,20.39528403]
[1672876936124,0.06844028,1257.9,1257.8,28.34566403]
[1672876936602,1.38344028,1257.9,1257.8,28.34566403]
[1672876936812,0.06844028,1257.9,1257.8,28.34566403]
[1672876936984,6.86545336,1257.9,1257.8,0.26653452]
[1672876937203,13.59546797,1257.9,1257.7,0.05823452]
[1672876937547,7.9547791,1257.8,1257.4,36.95963879]
[1672876937700,5.887,1257.7,1257.5,3.98914951]
[1672876937912,5.941,1257.7,1257.5,3.98914951]
[1672876938159,5.941,1257.7,1257.4,0.05823452]
[1672876938160,3.808,1257.6,1257.4,0.05823452]
[1672876938336,4.4048,1257.5,1257.2,0.10738202]
[1672876938689,1.904,1257.3,1257.2,0.0491475]
[1672876938856,2.2848,1257.3,1257.2,0.0491475]
[1672876940377,2.34384407,1257.3,1257.2,0.0491475]
[1672876941149,1.97,1257.4,1257.3,0.74487201]
[1672876941444,2.5008,1257.5,1257.3,4.73402152]
[1672876944338,2.5008,1257.5,1257.3,12.68736152]
[1672876944587,2.5008,1257.5,1257.3,12.74559604]
[1672876945225,2.5008,1257.5,1257.4,3.98914951]
[1672876945395,0.066,1257.6,1257.4,45.11637951]
[1672876945617,10.4926,1257.8,1257.5,6.98914951]
[1672876945825,13.73204493,1257.8,1257.5,22.95119403]
[1672876946184,14.32874493,1257.8,1257.5,22.95119403]
[1672876946337,14.32874493,1257.8,1257.6,11.94048951]
[1672876946338,0.054,1257.8,1257.6,11.94048951]
[1672876946539,1.98444028,1257.9,1257.7,7.25164951]
[1672876946540,1.97244028,1257.9,1257.7,7.25164951]
[1672876946749,5.0,1257.8,1257.7,7.30988403]
[1672876947004,5.054,1257.8,1257.7,7.04738403]
[1672876947542,0.054,1257.8,1257.7,7.04738403]
[1672876947701,0.002,1257.8,1257.7,14.99640403]
[1672876947909,1.97244028,1257.9,1257.7,14.99840403]
[1672876948120,1.97244028,1257.9,1257.7,7.04738403]
[1672876948451,1.97244028,1257.9,1257.7,14.99831403]
[1672876949393,1.97244028,1257.9,1257.7,7.04738403]
[1672876950063,1.97244028,1257.9,1257.7,14.99835403]
[1672876950269,1.97244028,1257.9,1257.7,30.90039403]
[1672876950486,0.06844028,1257.9,1257.7,36.16988439]
[1672876951087,0.06844028,1257.9,1257.7,28.21886439]
[1672876951729,1.97244028,1257.9,1257.7,7.04738403]
[1672876952322,1.902,1257.8,1257.7,3.05823452]
[1672876952538,1.902,1257.8,1257.7,3.0]
[1672876953062,9.85238,1257.8,1257.7,3.0]
[1672876953328,12.84501203,1257.8,1257.7,3.0]
[1672876953503,4.89463203,1257.8,1257.7,3.0]
[1672876953710,1.902,1257.8,1257.7,3.0]
[1672876954480,9.85438,1257.8,1257.7,3.0]
[1672876954697,17.85676,1257.8,1257.7,3.0]
[1672876955258,17.80676,1257.8,1257.7,3.0]
[1672876956499,9.85638,1257.8,1257.7,3.0]
[1672876957310,20.74044503,1257.8,1257.7,3.0]
[1672876957499,20.74044503,1257.8,1257.5,3.29343452]
[1672876957712,20.74044503,1257.8,1257.6,3.98914951]
[1672876957904,20.74044503,1257.8,1257.7,3.0]
[1672876958778,12.79006503,1257.8,1257.7,3.0]
[1672876960217,10.93806503,1257.8,1257.6,4.04738403]
[1672876960446,10.93806503,1257.8,1257.6,3.98914951]
[1672876961717,2.98768503,1257.8,1257.6,3.98914951]
[1672876961941,2.93368503,1257.8,1257.6,3.98914951]
[1672876963045,29.00054028,1257.9,1257.6,3.98914951]
[1672876963254,28.98854028,1257.9,1257.6,3.98914951]
[1672876963732,13.08819028,1257.9,1257.6,3.98914951]
[1672876963958,5.13844028,1257.9,1257.6,11.94060951]
[1672876964261,13.08821028,1257.9,1257.6,4.04738403]
[1672876964499,17.36004534,1257.9,1257.6,3.98914951]
[1672876966572,25.30981534,1257.9,1257.6,3.98914951]
[1672876966887,25.90641534,1257.9,1257.6,3.98914951]
[1672876968841,1.904,1257.8,1257.6,3.98914951]
[1672876969303,9.85452,1257.8,1257.6,3.98914951]
[1672876969528,9.90852,1257.8,1257.6,3.98914951]
[1672876970187,1.904,1257.7,1257.6,3.98914951]
[1672876975501,1.97,1257.8,1257.6,3.98914951]
[1672876975652,1.904,1257.8,1257.6,3.98914951]
[1672876978543,9.85451,1257.8,1257.5,8.24540452]
[1672876978717,13.4875891,1257.8,1257.5,12.23455403]
[1672876978923,17.27122254,1257.8,1257.5,12.23455403]
[1672876979347,14.13194976,1257.8,1257.5,12.23455403]
[1672876979961,10.55287066,1257.8,1257.5,12.23455403]
[1672876980958,10.55287066,1257.8,1257.5,12.23473403]
[1672876981322,14.13194976,1257.8,1257.5,12.23473403]
[1672876981971,22.08245976,1257.8,1257.5,4.28258403]
[1672876982217,22.08245976,1257.8,1257.5,4.22434951]
[1672876982602,14.13194976,1257.8,1257.5,4.22434951]
[1672876983084,14.13194976,1257.8,1257.5,12.17650951]
[1672876983376,9.31371254,1257.8,1257.5,12.23474403]
[1672876983588,9.31371254,1257.8,1257.5,20.18702403]
[1672876983589,5.5300791,1257.8,1257.5,20.18702403]
[1672876984841,13.4805291,1257.8,1257.5,12.23474403]
[1672876985438,5.4640791,1257.7,1257.5,12.23474403]
[1672876985639,5.5180791,1257.7,1257.5,4.28258403]
[1672876985843,5.5180791,1257.7,1257.5,4.22434951]
[1672876987123,1.939,1257.7,1257.5,4.22434951]
[1672876987330,1.885,1257.7,1257.5,4.22434951]
[1672876988311,1.885,1257.7,1257.5,12.17640951]
[1672876988469,1.885,1257.7,1257.5,12.23464403]
[1672876989421,1.835,1257.7,1257.5,12.23464403]
[1672876993424,1.837,1257.7,1257.5,20.18492403]
[1672876993689,1.835,1257.7,1257.5,34.64609043]
[1672876996317,14.0219791,1257.8,1257.5,34.64609043]
[1672876996532,14.0099791,1257.8,1257.5,34.64609043]
[1672876997748,14.0099791,1257.8,1257.5,26.69381043]
[1672876997976,14.0099791,1257.8,1257.5,12.23464403]
[1672876998195,21.9604591,1257.8,1257.5,12.23464403]
[1672876998611,5.4670791,1257.7,1257.5,0.05823452]
[1672876998821,1.904,1257.6,1257.5,3.0]
[1672876999061,8.35370791,1257.6,1257.4,12.34483452]
[1672876999367,1.885,1257.5,1257.4,12.34483452]
[1672876999591,1.885,1257.5,1257.4,11.98963452]
[1672877000480,1.885,1257.5,1257.4,14.98963452]
[1672877002783,1.885,1257.5,1257.4,22.94254452]
[1672877003720,1.885,1257.5,1257.4,14.98963452]
[1672877004355,1.885,1257.5,1257.4,22.94254452]
[1672877008610,1.886,1257.5,1257.4,22.94254452]
[1672877011953,1.886,1257.5,1257.4,30.89268702]
[1672877013639,1.971,1257.6,1257.4,30.89268702]
[1672877013868,2.86000791,1257.6,1257.4,30.89268702]
[1672877014221,2.86000791,1257.6,1257.4,22.93977702]
[1672877015697,2.86000791,1257.6,1257.4,30.89268702]
[1672877016347,0.95500791,1257.6,1257.4,30.89268702]
[1672877016653,5.952,1257.7,1257.4,30.89268702]
[1672877016794,5.94,1257.7,1257.4,30.89268702]
[1672877019552,1.94,1257.7,1257.4,30.89268702]
[1672877019757,1.886,1257.7,1257.4,30.89268702]
[1672877019968,8.5489,1257.8,1257.5,3.98914951]
[1672877020162,12.1159791,1257.8,1257.5,19.89323951]
[1672877020371,12.1159791,1257.8,1257.5,19.95147403]
[1672877021238,12.1159791,1257.8,1257.5,27.90375403]
[1672877021565,12.0659791,1257.8,1257.5,33.00568368]
[1672877023588,8.4869,1257.8,1257.5,33.00568368]
[1672877024473,12.0659791,1257.8,1257.5,33.00568368]
[1672877026580,12.0659791,1257.8,1257.5,25.05340368]
[1672877027552,12.0659791,1257.8,1257.5,19.95147403]
[1672877036218,12.0659791,1257.8,1257.5,0.05823452]
[1672877036392,11.5301291,1257.7,1257.4,37.17368702]
[1672877036595,3.6330791,1257.7,1257.4,57.06847653]
[1672877036847,3.5790791,1257.7,1257.4,57.06847653]
[1672877039423,6.62524801,1257.7,1257.4,57.06847653]
[1672877039708,6.67924801,1257.7,1257.4,57.06847653]
[1672877040064,6.67924801,1257.7,1257.4,43.06847653]
[1672877040296,6.67924801,1257.7,1257.4,57.06847653]
[1672877040676,3.6330791,1257.7,1257.4,57.06847653]
[1672877040890,3.5790791,1257.7,1257.4,57.06847653]
[1672877041775,5.4830791,1257.6,1257.4,15.22086702]
[1672877041942,13.4888491,1257.6,1257.4,11.98686702]
[1672877042153,16.04481687,1257.6,1257.4,11.98686702]
[1672877042363,20.04481687,1257.6,1257.4,11.98686702]
[1672877043422,12.09304687,1257.6,1257.4,11.98686702]
[1672877046096,20.04473687,1257.6,1257.4,11.98686702]
[1672877046669,20.04473687,1257.6,1257.4,11.98413178]
[1672877046938,12.09304687,1257.6,1257.4,11.98413178]
[1672877049354,20.04470687,1257.6,1257.4,11.98413178]
[1672877049577,8.09304687,1257.6,1257.4,11.98413178]
[1672877049782,8.09304687,1257.6,1257.4,19.93695178]
[1672877050826,8.09304687,1257.6,1257.4,11.98413178]
[1672877052663,4.51396777,1257.6,1257.4,11.98413178]
[1672877052874,4.45996777,1257.6,1257.4,11.98413178]
[1672877053085,15.99093687,1257.6,1257.4,11.98413178]
[1672877053329,16.04493687,1257.6,1257.4,11.98413178]
[1672877053875,8.09304687,1257.6,1257.4,11.98413178]
[1672877055076,4.51396777,1257.6,1257.4,19.93691178]
[1672877055357,4.45996777,1257.6,1257.4,19.93691178]
[1672877055571,4.45996777,1257.6,1257.4,11.98413178]
[1672877057409,4.45996777,1257.6,1257.4,19.93700178]
[1672877058396,4.45996777,1257.6,1257.4,11.98413178]
[1672877060704,8.03904687,1257.6,1257.4,11.98413178]
[1672877060898,16.04482687,1257.6,1257.4,11.98413178]
[1672877061946,12.46574777,1257.6,1257.4,11.98413178]
[1672877062563,16.04482687,1257.6,1257.4,11.98413178]
[1672877063759,16.04099964,1257.6,1257.4,11.98413178]
[1672877066441,0.38306344,1257.5,1257.4,11.98413178]
[1672877067856,0.38306344,1257.5,1257.4,35.84286178]
[1672877068170,0.38306344,1257.5,1257.4,27.88995178]
[1672877068484,0.38306344,1257.5,1257.4,25.09756596]
[1672877069308,8.6370791,1257.7,1257.4,33.05047596]
[1672877069512,5.1050791,1257.7,1257.4,27.88995178]
[1672877070848,13.0561491,1257.7,1257.4,19.93704178]
[1672877071894,5.1050791,1257.7,1257.4,19.93704178]
[1672877072105,5.1050791,1257.7,1257.4,27.88995178]
[1672877072574,5.1050791,1257.7,1257.4,19.93704178]
[1672877073281,5.1050791,1257.7,1257.4,27.88995178]
[1672877073721,5.1050791,1257.7,1257.4,19.93704178]
[1672877074770,9.90903,1257.7,1257.4,19.93704178]
[1672877075102,14.00203986,1257.7,1257.4,19.93704178]
[1672877075521,3.57840977,1257.6,1257.4,19.93704178]
[1672877079512,3.57840977,1257.6,1257.4,27.88995178]
[1672877080460,3.57840977,1257.6,1257.4,19.93704178]
[1672877080679,3.57840977,1257.6,1257.4,27.88995178]
[1672877081567,3.57840977,1257.6,1257.4,19.93704178]
[1672877081980,3.57840977,1257.6,1257.4,27.88995178]
[1672877082841,3.57840977,1257.6,1257.4,19.93704178]
[1672877085402,3.57840977,1257.6,1257.4,27.88995178]
[1672877086724,3.57840977,1257.6,1257.4,19.93704178]
[1672877086953,3.57840977,1257.6,1257.4,27.88995178]
[1672877087860,5.54840977,1257.7,1257.4,35.84286178]
[1672877088005,8.39710861,1257.7,1257.4,35.84286178]
[1672877088537,8.39710861,1257.7,1257.5,3.98914951]
[1672877088538,3.63240977,1257.7,1257.5,3.98914951]
[1672877088792,12.07730977,1257.8,1257.6,15.9033]
[1672877088981,3.63240977,1257.8,1257.6,23.98569452]
[1672877089188,3.63240977,1257.8,1257.6,16.03404452]
[1672877089189,3.57840977,1257.8,1257.6,16.03404452]
[1672877090326,3.57840977,1257.8,1257.6,16.97513632]
[1672877090568,4.30878887,1257.9,1257.7,19.89118951]
[1672877090569,3.71285005,1257.9,1257.7,19.89118951]
[1672877090785,3.71285005,1257.9,1257.7,27.90044403]
[1672877090786,3.64685005,1257.9,1257.7,27.90044403]
[1672877092526,3.64685005,1257.9,1257.7,19.94942403]
[1672877094227,3.64685005,1257.9,1257.7,19.94704419]
[1672877094455,3.64685005,1257.9,1257.7,24.94725279]
[1672877096895,0.06844028,1257.9,1257.7,24.94725279]
[1672877097083,0.06844028,1257.9,1257.7,32.89827279]
[1672877097515,0.06844028,1257.9,1257.7,24.94725279]
[1672877099695,0.06844028,1257.9,1257.7,32.89827279]
[1672877100480,0.06844028,1257.9,1257.7,24.94725279]
[1672877100651,0.06844028,1257.9,1257.7,32.89827279]
[1672877101092,0.06844028,1257.9,1257.7,24.94725279]
[1672877102336,0.06844028,1257.9,1257.7,19.94704419]
[1672877102564,0.06844028,1257.9,1257.7,0.05823452]
[1672877102565,3.64685005,1257.9,1257.7,0.05823452]
[1672877102813,11.59674005,1257.9,1257.6,0.13074452]
[1672877103128,3.70085005,1257.9,1257.6,11.02414]
[1672877103354,3.64685005,1257.9,1257.6,26.98567452]
[1672877103718,0.06844028,1257.9,1257.6,26.98567452]
[1672877105441,0.06458052,1257.9,1257.6,26.98567452]
[1672877106283,3.64299029,1257.9,1257.6,26.98567452]
[1672877108236,5.8878313,1257.9,1257.6,26.98567452]
[1672877108453,5.9418313,1257.9,1257.6,26.98567452]
[1672877110366,3.69699029,1257.9,1257.6,26.98567452]
[1672877110543,3.64299029,1257.9,1257.6,26.98567452]
[1672877113603,3.64299029,1257.9,1257.6,19.03402452]
[1672877115065,3.64299029,1257.9,1257.6,26.98567452]
[1672877115276,3.64299029,1257.9,1257.6,19.03402452]
[1672877115486,5.8878313,1257.9,1257.6,19.03402452]
[1672877115734,5.9418313,1257.9,1257.6,19.03402452]
[1672877116052,0.11858052,1257.9,1257.6,30.97482403]
[1672877116268,0.06458052,1257.9,1257.6,30.97482403]
[1672877117163,0.06458052,1257.9,1257.7,3.98914951]
[1672877117376,0.06458052,1257.9,1257.8,23.85114]
[1672877117693,0.06458052,1257.9,1257.8,23.90937452]
[1672877118115,0.06458052,1257.9,1257.8,22.73799643]
[1672877118345,0.06458052,1257.9,1257.8,30.68837643]
[1672877121924,0.06458052,1257.9,1257.8,22.73799643]
[1672877122464,0.06458052,1257.9,1257.8,22.80955643]
[1672877125514,0.06458052,1257.9,1257.8,30.75993643]
[1672877125878,0.06458052,1257.9,1257.8,27.96664694]
[1672877129249,0.06458052,1257.9,1257.8,27.89508694]
[1672877147612,0.06458052,1257.9,1257.8,27.8915539]
[1672877150024,2.97414453,1258.1,1257.8,27.8915539]
[1672877150199,2.97414453,1258.1,1258.0,7.94912]
[1672877150403,2.97414453,1258.1,1258.0,8.00735452]
[1672877151037,2.97414453,1258.1,1258.0,15.95647452]
[1672877151497,17.02239271,1258.2,1258.0,15.95647452]
[1672877151498,13.02239271,1258.2,1258.0,27.89474403]
[1672877151666,8.23954412,1258.2,1258.0,31.47916043]
[1672877155340,8.23954412,1258.2,1258.0,27.89474403]
[1672877155631,8.23954412,1258.2,1258.0,11.99650403]
[1672877155803,8.23954412,1258.2,1258.0,11.99649403]
[1672877156012,3.5752971,1258.1,1258.0,11.99649403]
[1672877157236,3.5752971,1258.1,1258.0,4.04738403]
[1672877157449,3.5752971,1258.1,1258.0,3.98914951]
[1672877160639,5.17541608,1258.1,1257.9,0.05823452]
[1672877160826,3.57623665,1258.0,1257.9,7.94975]
[1672877161039,3.57623665,1258.0,1257.9,0.05823452]
[1672877161244,3.57623665,1258.0,1257.9,7.94975]
[1672877161474,3.57623665,1258.0,1257.9,8.00798452]
[1672877161650,3.57623665,1258.0,1257.9,0.05823452]
[1672877161861,3.57623665,1258.0,1257.8,23.97969452]
[1672877162129,3.57623665,1258.0,1257.8,27.96884403]
[1672877162657,9.24235563,1258.1,1257.8,27.96884403]
[1672877162811,9.23035563,1258.1,1257.8,27.96884403]
[1672877163019,3.57623665,1258.0,1257.8,27.96884403]
[1672877163235,3.57823665,1258.0,1257.8,27.96684403]
[1672877163450,3.57623665,1258.0,1257.8,27.96884403]
[1672877164702,3.57823665,1258.0,1257.8,27.96684403]
[1672877164914,3.57623665,1258.0,1257.8,27.96884403]
[1672877171362,3.57623665,1258.0,1257.8,27.96506757]
[1672877173537,3.57623665,1258.0,1257.8,20.01497757]
[1672877173748,3.57623665,1258.0,1257.8,12.06489757]
[1672877174548,3.57623665,1258.0,1257.8,20.01527757]
[1672877175288,3.57623665,1258.0,1257.8,12.06489757]
[1672877176131,3.57623665,1258.0,1257.8,4.11488757]
[1672877176271,3.57623665,1258.0,1257.8,4.05665305]
[1672877177898,3.57623665,1258.0,1257.8,12.00692305]
[1672877178110,3.57623665,1258.0,1257.8,12.06515757]
[1672877179375,3.57623665,1258.0,1257.8,4.11488757]
[1672877179591,3.57623665,1258.0,1257.8,4.05665305]
[1672877181603,3.57623665,1258.0,1257.8,12.06520757]
[1672877182621,3.57623665,1258.0,1257.8,0.12573806]
[1672877182975,5.74175317,1258.0,1257.8,3.06750354]
[1672877183182,5.79575317,1258.0,1257.8,3.06750354]
[1672877187941,13.74488317,1258.0,1257.8,3.06750354]
[1672877188087,13.74488317,1258.0,1257.8,3.0]
[1672877188298,5.79575317,1258.0,1257.8,3.0]
[1672877191522,2.21951652,1258.0,1257.8,3.0]
[1672877191689,2.16551652,1258.0,1257.8,2.99798097]
[1672877191907,5.74175317,1258.0,1257.8,2.99798097]
[1672877192117,5.79575317,1258.0,1257.8,2.99798097]
[1672877195037,2.21951652,1258.0,1257.8,2.99798097]
[1672877195302,5.74175317,1258.0,1257.8,2.99798097]
[1672877195515,13.74495317,1258.0,1257.8,2.99798097]
[1672877197871,5.79575317,1258.0,1257.8,2.99798097]
[1672877202325,5.79575317,1258.0,1257.8,2.99798097]
[1672877204485,3.63023665,1258.0,1257.8,2.99798097]
[1672877204667,3.57623665,1258.0,1257.8,2.99798097]
[1672877206791,3.57623665,1257.9,1257.8,2.99798097]
[1672877207399,27.49039665,1258.0,1257.8,2.99798097]
[1672877207610,3.57623665,1257.9,1257.8,2.99798097]
[1672877207997,19.54087665,1258.0,1257.8,2.99798097]
[1672877208206,23.56015717,1258.0,1257.8,2.99798097]
[1672877208766,15.61083717,1258.0,1257.8,2.99798097]
[1672877209150,23.56045717,1258.0,1257.8,2.99798097]
[1672877210635,15.61083717,1258.0,1257.8,2.99798097]
[1672877210886,7.66151717,1258.0,1257.8,2.99798097]
[1672877277154,0.37181812,1257.9,1257.8,27.89852403]
[1672877279392,0.37181812,1257.9,1257.8,11.99776403]
[1672877279812,3.95118119,1257.9,1257.8,0.05823452]
[1672877280045,5.55867217,1257.9,1257.7,3.0685]
[1672877280201,5.61267217,1257.9,1257.7,7.05764951]
[1672877280410,5.61267217,1257.9,1257.7,7.04738403]
[1672877281050,5.61267217,1257.9,1257.7,3.05823452]
[1672877281303,23.40156217,1257.9,1257.7,3.0]
[1672877281938,15.45144217,1257.9,1257.6,19.91812452]
[1672877282145,15.45144217,1257.9,1257.6,23.90727403]
[1672877282515,3.57936307,1257.8,1257.6,23.90727403]
[1672877283301,6.34729729,1257.8,1257.6,23.90727403]
[1672877283614,6.40129729,1257.8,1257.6,23.90457798]
[1672877287594,2.82193422,1257.8,1257.6,23.90457798]
[1672877287970,2.76793422,1257.8,1257.6,23.90457798]
[1672877289816,16.18469729,1257.8,1257.6,11.96383847]
[1672877290005,16.23869729,1257.8,1257.6,11.96383847]
[1672877290431,8.28829729,1257.8,1257.6,11.96383847]
[1672877294873,4.70893422,1257.8,1257.6,11.96383847]
[1672877295232,4.65493422,1257.8,1257.6,11.96383847]
[1672877295604,2.76793422,1257.8,1257.6,11.96383847]
[1672877296464,6.34729729,1257.8,1257.6,11.96383847]
[1672877296675,6.40129729,1257.8,1257.6,11.96383847]
[1672877303855,6.40129729,1257.8,1257.6,11.95992046]
[1672877304245,14.35173729,1257.8,1257.6,11.95992046]
[1672877304975,6.40129729,1257.8,1257.6,11.95992046]
[1672877306106,2.82193422,1257.8,1257.6,19.91155046]
[1672877306495,2.76793422,1257.8,1257.6,19.91155046]
[1672877308691,6.34729729,1257.8,1257.6,11.95992046]
[1672877308910,6.40129729,1257.8,1257.6,11.95992046]
[1672877309061,14.35175729,1257.8,1257.6,11.95992046]
[1672877309825,6.40129729,1257.8,1257.6,11.95992046]
[1672877310211,14.35174729,1257.8,1257.6,11.95992046]
[1672877312226,6.40129729,1257.8,1257.6,11.95992046]
[1672877313891,14.35170729,1257.8,1257.6,11.95992046]
[1672877317049,6.40129729,1257.8,1257.6,11.95992046]
[1672877318744,6.40129729,1257.8,1257.6,11.95992046]
[1672877318988,3.57936307,1257.7,1257.6,11.95992046]
[1672877319143,3.57936307,1257.7,1257.6,14.95992046]
[1672877328303,3.57936307,1257.7,1257.6,14.95742251]
[1672877330666,11.53038307,1257.7,1257.6,14.95742251]
[1672877330872,7.47736566,1257.7,1257.6,14.95742251]
[1672877331082,15.42838566,1257.7,1257.6,14.95742251]
[1672877333609,7.47736566,1257.7,1257.6,14.95742251]
[1672877336347,21.68904259,1257.7,1257.6,0.05823452]
[1672877336566,21.68904259,1257.7,1257.2,42.31068202]
[1672877336567,43.91451118,1257.7,1257.2,42.31068202]
[1672877336773,5.46542115,1257.5,1257.2,46.29983153]
[1672877337021,30.51306327,1257.5,1257.2,46.29983153]
[1672877337232,5.51942115,1257.5,1257.2,46.29983153]
[1672877337442,0.054,1257.5,1257.2,70.16237153]
[1672877337668,7.63242115,1257.6,1257.2,70.16237153]
[1672877337871,15.58424115,1257.6,1257.3,3.0]
[1672877338058,15.58424115,1257.6,1257.3,10.95344]
[1672877338291,18.95902873,1257.6,1257.3,11.01167452]
[1672877338709,11.00720873,1257.6,1257.3,18.96522452]
[1672877338923,0.054,1257.6,1257.3,30.90792403]
[1672877339134,25.54563374,1257.7,1257.3,30.90792403]
[1672877340303,17.59452374,1257.7,1257.3,30.90792403]
[1672877340621,25.54567374,1257.7,1257.3,30.90792403]
[1672877343348,7.57842115,1257.6,1257.3,15.00082403]
[1672877343559,4.054,1257.6,1257.3,15.00082403]